bitfinex/quotes_ETHUSD_20240722
["timestamp","ask_amount","ask_price","bid_price","bid_amount"]
[1721644533264,1.52449043,3497.7,3497.3,2.85933]
[1721644533511,1.45417167,3497.6,3497.3,2.85933]
[1721644533867,0.07013911,3497.5,3497.3,2.85933]
[1721644534478,2.85895,3497.8,3497.3,2.85933]
[1721644534674,0.07011284,3497.4,3497.3,2.85933]
[1721644534896,2.85895,3497.8,3497.2,1.018]
[1721644535205,4.31320367,3497.7,3497.2,1.018]
[1721644535384,6.65448367,3497.6,3497.2,1.018]
[1721644535584,1.45418367,3497.5,3497.1,2.85951]
[1721644535787,1.5243369,3497.5,3497.1,2.85951]
[1721644535977,0.07015323,3497.5,3497.1,2.85951]
[1721644537981,0.07015323,3497.5,3497.1,2.85945]
[1721644538175,0.07015323,3497.5,3497.1,3.767549]
[1721644538462,0.07015323,3497.5,3497.1,4.785549]
[1721644538723,0.07015323,3497.5,3497.1,7.644999]
[1721644539126,0.07015323,3497.5,3497.3,2.85929]
[1721644539478,2.49,3497.8,3497.3,3.87729]
[1721644539801,1.52439751,3497.7,3497.5,2.85913]
[1721644540017,1.45418069,3497.6,3497.5,2.85913]
[1721644540384,1.52437457,3497.6,3497.4,2.85924]
[1721644540575,0.07019388,3497.6,3497.4,2.85924]
[1721644541024,5.34879,3498.0,3497.4,2.85924]
[1721644541194,0.07016937,3497.5,3497.4,2.85924]
[1721644541399,2.85886,3497.9,3497.4,2.85924]
[1721644541612,0.07018349,3497.5,3497.4,2.85924]
[1721644541808,2.85886,3497.9,3497.4,2.85924]
[1721644542129,1.45418024,3497.8,3497.4,2.85924]
[1721644542293,4.38345314,3497.8,3497.3,3.87734]
[1721644542487,1.45418024,3497.7,3497.3,2.85934]
[1721644543028,0.07025213,3497.6,3497.3,2.85934]
[1721644543403,2.85894,3497.8,3497.3,2.85934]
[1721644543612,0.07025412,3497.5,3497.3,2.85934]
[1721644543849,2.85894,3497.8,3497.3,2.85934]
[1721644544011,0.07021374,3497.4,3497.3,2.85934]
[1721644544214,2.85894,3497.8,3497.3,2.85934]
[1721644544524,1.45417784,3497.7,3497.3,2.85934]
[1721644544742,0.07019563,3497.6,3497.3,2.85934]
[1721644545112,2.85894,3497.8,3497.3,2.85934]
[1721644545314,1.52442806,3497.7,3497.3,2.85934]
[1721644545508,1.45417792,3497.6,3497.3,2.85934]
[1721644545720,0.07016937,3497.5,3497.3,2.85934]
[1721644546132,2.85894,3497.8,3497.3,2.85934]
[1721644546338,0.0701431,3497.4,3497.3,2.85934]
[1721644546551,2.85894,3497.8,3497.3,2.85934]
[1721644546736,0.07015723,3497.4,3497.3,2.85934]
[1721644546921,2.85894,3497.8,3497.3,2.85934]
[1721644547114,1.52445857,3497.7,3497.3,2.85934]
[1721644547316,1.45418018,3497.6,3497.4,2.85925]
[1721644547633,0.07021175,3497.5,3497.4,2.85925]
[1721644548257,2.85885,3497.9,3497.4,2.85925]
[1721644548476,0.07024,3497.5,3497.4,2.85925]
[1721644548618,2.85885,3497.9,3497.4,2.85925]
[1721644548965,4.31312705,3497.8,3497.3,1.018]
[1721644549131,1.45417705,3497.7,3497.3,1.018]
[1721644549333,1.45417705,3497.7,3497.2,2.85935]
[1721644549334,1.52451194,3497.7,3497.2,2.85935]
[1721644549633,1.45417705,3497.6,3497.2,2.85935]
[1721644550132,0.07015524,3497.5,3497.2,2.85935]
[1721644550517,2.85895,3497.8,3497.2,2.85935]
[1721644550830,1.52442486,3497.7,3497.2,2.85935]
[1721644551164,1.45418039,3497.6,3497.2,2.85935]
[1721644551318,1.52441273,3497.6,3497.2,2.85935]
[1721644551519,1.45418039,3497.5,3497.2,2.85935]
[1721644551764,0.07015156,3497.4,3497.2,2.85935]
[1721644552132,2.85895,3497.8,3497.2,2.85935]
[1721644552331,1.52445458,3497.7,3497.2,2.85935]
[1721644552661,1.45418185,3497.6,3497.2,2.85935]
[1721644552959,0.07022021,3497.5,3497.2,2.85935]
[1721644553466,2.85895,3497.8,3497.3,2.85933]
[1721644553760,1.4541815,3497.7,3497.3,2.85933]
[1721644553917,1.52451073,3497.7,3497.3,2.85933]
[1721644554120,1.4541815,3497.6,3497.3,2.85933]
[1721644554316,0.07024846,3497.5,3497.3,2.85933]
[1721644554862,2.85895,3497.8,3497.3,2.85933]
[1721644555057,0.07010918,3497.4,3497.1,6.7369]
[1721644555259,5.71796,3497.8,3497.2,2.85942]
[1721644555460,0.06992409,3497.3,3497.2,2.85942]
[1721644555658,2.85902,3497.7,3497.2,2.85942]
[1721644555867,0.06992409,3497.3,3497.2,2.85942]
[1721644556066,2.85902,3497.7,3497.2,2.85942]
[1721644556246,0.06992409,3497.3,3497.2,2.85942]
[1721644556415,2.85902,3497.7,3497.2,2.85942]
[1721644556620,0.06993822,3497.3,3497.2,2.85942]
[1721644556835,0.06993822,3497.3,3497.2,3.53893973]
[1721644557035,0.06993822,3497.3,3496.8,0.59427727]
[1721644557036,2.85902,3497.7,3496.8,0.59427727]
[1721644557237,2.85902,3497.7,3497.0,3.87753]
[1721644557238,0.06995235,3497.3,3497.0,3.87753]
[1721644557527,2.85919,3497.5,3497.0,1.018]
[1721644557528,0.06994021,3497.2,3497.0,1.018]
[1721644557829,2.85919,3497.5,3497.0,1.018]
[1721644558028,0.06989981,3497.1,3497.0,1.018]
[1721644558262,0.06989981,3497.1,3497.0,2.01216349]
[1721644558593,0.06989981,3497.1,3497.0,2.01217832]
[1721644558885,2.85919,3497.5,3497.0,2.01217832]
[1721644559058,0.06983011,3497.1,3497.0,1.018]
[1721644559253,2.85919,3497.5,3497.0,4.87172901]
[1721644559568,0.06984329,3497.1,3497.0,3.87758]
[1721644559880,1.4542629,3497.4,3497.0,3.87758]
[1721644559881,2.85919,3497.5,3497.0,4.87172927]
[1721644560091,0.06984329,3497.1,3497.0,3.87758]
[1721644560296,2.85919,3497.5,3497.0,4.87172862]
[1721644560456,0.06985742,3497.1,3497.0,3.87758]
[1721644560659,2.85919,3497.5,3497.0,4.87172851]
[1721644560988,0.06986762,3497.1,3497.0,3.87758]
[1721644561161,2.85919,3497.5,3497.0,3.85373002]
[1721644561478,0.06986762,3497.1,3497.0,2.85958]
[1721644561683,2.85919,3497.5,3497.0,3.85373004]
[1721644561847,0.06986762,3497.1,3497.0,2.85958]
[1721644562183,0.06986762,3497.1,3497.0,5.71729572]
[1721644562360,0.06986762,3497.1,3497.0,7.20851503]
[1721644562560,5.10941,3497.6,3497.0,5.71729572]
[1721644562760,1.45426416,3497.5,3497.0,4.72314631]
[1721644563062,1.52430749,3497.5,3497.1,0.99413344]
[1721644563263,1.45426416,3497.4,3497.0,4.72314631]
[1721644563462,1.45426416,3497.4,3497.1,0.99413408]
[1721644563664,0.06997667,3497.3,3497.0,4.72314631]
[1721644563863,1.45426416,3497.2,3497.1,0.99413327]
[1721644564273,1.52420043,3497.2,3497.1,0.99413327]
[1721644565162,1.52420043,3497.2,3497.1,3.85364327]
[1721644565954,1.52420043,3497.2,3497.1,3.85365052]
[1721644566171,1.52420043,3497.2,3497.1,3.85364755]
[1721644567283,1.52420043,3497.2,3497.1,5.34483726]
[1721644567482,1.52420043,3497.2,3497.1,6.50020393]
[1721644567808,1.45426416,3497.2,3497.1,6.50020393]
[1721644568122,2.2503,3497.6,3497.2,2.85942]
[1721644568413,1.45425097,3497.5,3497.2,2.85942]
[1721644570414,1.45425097,3497.5,3497.2,3.3118]
[1721644570627,2.85885,3497.9,3497.4,2.85922]
[1721644570932,1.45419431,3497.8,3497.4,2.85922]
[1721644571084,1.45419431,3497.7,3497.4,2.85922]
[1721644571428,1.45419431,3497.6,3497.4,2.85922]
[1721644571714,1.45419431,3497.5,3497.4,2.85922]
[1721644572079,1.45419431,3497.8,3497.4,2.85922]
[1721644572279,1.45419431,3497.7,3497.4,2.85922]
[1721644572520,1.45419431,3497.6,3497.4,2.85922]
[1721644572716,1.45419431,3497.5,3497.4,2.85922]
[1721644573017,1.45419431,3497.8,3497.4,2.85922]
[1721644573196,1.45419431,3497.7,3497.4,2.8592]
[1721644573516,1.45419431,3497.6,3497.4,2.8592]
[1721644573702,5.31768,3498.0,3497.4,2.8592]
[1721644573703,1.45419431,3497.5,3497.4,2.8592]
[1721644574013,1.45419431,3497.8,3497.4,2.8592]
[1721644574214,1.45419431,3497.7,3497.4,2.8592]
[1721644574515,1.45419431,3497.6,3497.2,2.85935]
[1721644574718,1.45419431,3497.5,3497.3,0.99407005]
[1721644574895,1.45419431,3497.4,3497.2,2.85935]
[1721644575095,2.85898,3497.8,3497.3,0.99407221]
[1721644575296,4.31319312,3497.7,3497.2,2.85935]
[1721644575598,1.45417312,3497.6,3497.0,6.94910727]
[1721644575924,4.31338312,3497.5,3497.0,3.87753]
[1721644576106,4.31343312,3497.4,3496.8,4.47197727]
[1721644576417,1.45417312,3497.3,3496.9,6.85383105]
[1721644576719,1.52411221,3497.3,3496.9,5.85966]
[1721644576881,1.45417312,3497.2,3496.9,5.85966]
[1721644577335,0.06985829,3497.1,3497.0,0.99415572]
[1721644577615,1.45417312,3497.1,3497.0,0.99415572]
[1721644577782,4.31337312,3497.5,3497.0,0.99415572]
[1721644578107,0.06988655,3497.1,3497.0,2.85959]
[1721644578308,1.45417312,3497.3,3497.0,3.63697522]
[1721644578527,0.06990068,3497.1,3497.0,3.63697522]
[1721644578686,1.45417312,3497.1,3497.0,3.63697522]
[1721644579022,0.06990068,3497.1,3497.0,0.77738522]
[1721644579186,1.45417312,3497.1,3497.0,1.77156143]
[1721644579385,1.52408793,3497.1,3497.0,0.77738522]
[1721644581906,3.79638793,3497.1,3496.6,3.45417727]
[1721644582109,1.45417312,3497.0,3496.7,3.85407954]
[1721644582312,1.45438241,3496.9,3496.7,2.85983]
[1721644582515,0.06985651,3496.9,3496.7,2.85983]
[1721644582689,2.4655,3497.3,3496.8,2.85975]
[1721644582890,1.45438069,3497.2,3496.6,1.018]
[1721644583091,5.32469,3497.5,3496.9,5.71922]
[1721644583092,1.45438069,3497.1,3496.9,5.71922]
[1721644583329,1.45438069,3497.0,3496.9,2.8596]
[1721644583533,1.45437158,3497.4,3497.0,5.24526]
[1721644583702,1.45436817,3497.3,3497.1,2.85946]
[1721644583896,2.85903,3497.7,3497.1,2.85946]
[1721644583897,1.45436817,3497.2,3497.1,2.85946]
[1721644584131,1.45436817,3497.6,3497.2,2.8594]
[1721644584325,2.85903,3497.7,3497.2,2.8594]
[1721644584326,1.45436861,3497.5,3497.2,2.8594]
[1721644584494,1.45436861,3497.4,3497.2,2.8594]
[1721644584823,1.45436861,3497.3,3497.1,2.85951]
[1721644585001,1.45436861,3497.2,3497.1,2.85951]
[1721644585197,1.45436861,3497.6,3497.1,2.85951]
[1721644585404,1.45436861,3497.5,3497.1,2.85951]
[1721644585596,1.45436861,3497.4,3497.1,2.85951]
[1721644585920,1.45436861,3497.3,3497.1,2.85951]
[1721644586139,1.45436861,3497.2,3497.1,2.85951]
[1721644586304,1.45436861,3497.6,3497.1,2.85951]
[1721644586486,2.85903,3497.7,3497.1,2.85951]
[1721644586487,1.45436861,3497.5,3497.1,2.85951]
[1721644586692,1.45436861,3497.4,3497.1,2.85951]
[1721644586893,1.45436861,3497.3,3497.1,2.85951]
[1721644587193,1.45436861,3497.2,3497.1,2.85951]
[1721644587391,1.45429547,3497.6,3497.2,2.8594]
[1721644587597,2.4655,3497.8,3497.2,2.8594]
[1721644587598,1.45427838,3497.5,3497.2,2.8594]
[1721644587832,1.45427838,3497.4,3497.2,2.8594]
[1721644588000,2.4655,3497.8,3497.2,2.8594]
[1721644588001,1.45427838,3497.3,3497.2,2.8594]
[1721644588651,1.45427838,3497.7,3497.2,2.8594]
[1721644588958,1.45427838,3497.7,3497.4,1.018]
[1721644589181,1.45427838,3497.6,3497.5,2.85918]
[1721644589322,4.35927435,3498.5,3497.9,2.85885]
[1721644589524,2.85858,3498.3,3497.7,3.87694]
[1721644589720,1.45399098,3498.2,3497.7,2.85894]
[1721644590122,1.45399098,3498.2,3497.8,2.85887]
[1721644590437,1.45399098,3498.1,3497.8,2.85887]
[1721644590643,1.45399098,3498.0,3497.5,3.87714]
[1721644590831,2.85857,3498.3,3497.6,0.634764]
[1721644590832,1.45399098,3497.9,3497.6,0.634764]
[1721644591173,1.45399098,3497.8,3497.6,0.634764]
[1721644591476,0.07022541,3497.8,3497.6,0.634764]
[1721644591642,2.85857,3498.3,3497.7,2.85901]
[1721644591842,1.45402641,3498.2,3497.7,2.85901]
[1721644592469,1.45402641,3498.2,3497.8,2.85893]
[1721644592669,1.45402559,3498.1,3497.8,2.85893]
[1721644592874,1.45402559,3498.0,3497.8,2.85893]
[1721644593178,1.45402559,3497.9,3497.8,2.85893]
[1721644593543,1.45402559,3498.3,3497.8,2.85893]
[1721644593744,1.45402559,3498.2,3497.8,2.85893]
[1721644594055,2.85845,3498.4,3497.8,2.85893]
[1721644594056,1.45402559,3498.1,3497.8,2.85893]
[1721644594253,1.45402559,3498.0,3497.8,2.85893]
[1721644594467,1.45402559,3497.9,3497.8,2.85893]
[1721644594965,1.45402559,3498.2,3497.8,2.85893]
[1721644595748,6.69423559,3498.2,3497.4,2.85922]
[1721644595986,1.45402559,3498.1,3497.4,2.85922]
[1721644596642,2.85882,3498.0,3497.4,2.85922]
[1721644596886,1.45402559,3497.9,3497.4,2.85922]
[1721644597387,2.85918,3497.6,3497.0,0.59427727]
[1721644597578,1.45417484,3497.5,3496.9,5.85962]
[1721644597764,1.45428302,3497.4,3496.9,5.85962]
[1721644597964,4.31359302,3497.4,3496.9,3.0]
[1721644598163,4.31359302,3497.4,3496.7,4.26845773]
[1721644598164,1.45432227,3497.3,3496.8,3.0]
[1721644598371,1.45432227,3497.3,3496.7,4.26844773]
[1721644598786,1.45432227,3497.3,3496.8,2.85975]
[1721644599907,1.45437682,3497.2,3496.8,2.85975]
[1721644600069,2.85931,3497.4,3496.8,2.85975]
[1721644600267,1.45437644,3497.3,3496.9,3.87767]
[1721644605711,1.45437644,3497.3,3496.9,1.018]
[1721644606323,0.07008092,3497.2,3496.9,1.018]
[1721644606696,2.85931,3497.4,3496.9,1.018]
[1721644606901,0.07008972,3497.1,3496.9,1.018]
[1721644607219,2.85931,3497.4,3496.9,1.018]
[1721644607370,0.07004933,3497.0,3496.9,1.018]
[1721644607867,0.07007758,3497.0,3496.9,1.018]
[1721644608114,2.85931,3497.4,3496.9,1.018]
[1721644608285,0.07007758,3497.0,3496.9,1.018]
[1721644608484,2.85931,3497.4,3496.9,1.018]
[1721644608710,0.07009171,3497.0,3496.9,1.018]
[1721644608898,2.85931,3497.4,3496.9,1.018]
[1721644609210,1.45437475,3497.3,3496.9,1.018]
[1721644609613,1.52460176,3497.3,3496.9,1.018]
[1721644609918,1.45437475,3497.2,3496.9,1.018]
[1721644610338,0.07014623,3497.1,3496.9,1.018]
[1721644610790,2.85931,3497.4,3496.9,1.018]
[1721644610991,1.52450373,3497.3,3496.9,1.018]
[1721644611192,1.4543756,3497.2,3496.9,1.018]
[1721644611408,0.07004734,3497.1,3496.9,1.018]
[1721644611928,5.71828,3497.6,3496.9,3.87761]
[1721644612140,1.4543736,3497.5,3497.1,2.85946]
[1721644612436,1.4543736,3497.4,3497.3,3.87732]
[1721644612642,2.8589,3497.9,3497.3,3.87732]
[1721644612785,1.45420057,3497.8,3497.3,3.87732]
[1721644613224,1.45420774,3497.7,3497.3,3.87732]
[1721644613388,1.45420774,3497.6,3497.3,3.87732]
[1721644613588,2.8589,3497.9,3497.3,3.87732]
[1721644613799,4.3131417,3497.8,3497.3,3.87732]
[1721644614001,1.4542017,3497.7,3497.3,3.87732]
[1721644614623,4.3132417,3497.7,3497.1,3.87745]
[1721644614829,1.4542017,3497.6,3497.1,3.87745]
[1721644615431,7.40798587,3497.6,3496.9,2.85967]
[1721644615643,4.3134317,3497.5,3496.9,2.85967]
[1721644615795,1.4542017,3497.4,3496.9,2.85967]
[1721644616696,4.3134917,3497.4,3496.7,6.27618]
[1721644616896,1.4542017,3497.3,3496.8,2.85974]
[1721644617099,2.85927,3497.4,3496.9,2.85967]
[1721644617412,1.45434116,3497.3,3496.9,2.85967]
[1721644619120,1.45434116,3497.3,3496.8,4.508341]
[1721644619501,4.31371116,3497.3,3496.8,4.508341]
[1721644619746,2.85924,3497.5,3496.8,4.508341]
[1721644620049,1.45434453,3497.4,3496.8,4.508341]
[1721644620814,4.31361453,3497.4,3496.8,4.508341]
[1721644621021,1.45434453,3497.3,3496.8,4.508341]
[1721644621221,1.5244894,3497.3,3496.8,4.508341]
[1721644621425,0.07014487,3497.3,3496.8,4.508341]
[1721644621799,0.07014487,3497.3,3496.9,2.85966]
[1721644622052,2.85922,3497.5,3496.9,3.87759]
[1721644622235,1.45433997,3497.4,3496.9,3.87759]
[1721644622411,1.45433997,3497.4,3496.9,6.73719]
[1721644622618,0.07014487,3497.3,3496.9,6.73719]
[1721644622850,0.07014487,3497.3,3496.9,7.650749]
[1721644623006,2.85922,3497.5,3496.9,7.650769]
[1721644623205,0.07012619,3497.2,3497.0,2.85958]
[1721644623410,2.85922,3497.5,3497.0,2.85958]
[1721644623753,1.5245414,3497.4,3497.0,2.85958]
[1721644623908,1.45433443,3497.3,3497.0,2.85958]
[1721644624109,1.52450188,3497.3,3497.0,2.85958]
[1721644624453,0.07016745,3497.3,3497.1,2.85948]
[1721644624631,2.85904,3497.7,3496.9,3.87759]
[1721644624951,0.07014119,3497.2,3496.9,2.85959]
[1721644625158,2.85919,3497.5,3496.9,2.85959]
[1721644625343,0.07011492,3497.1,3496.9,2.85959]
[1721644625549,2.85919,3497.5,3496.9,2.85959]
[1721644625732,0.07000388,3497.0,3496.9,2.85959]
[1721644625917,2.85919,3497.5,3496.9,2.85959]
[1721644626122,0.07000388,3497.0,3496.9,2.85959]
[1721644626346,2.85919,3497.5,3496.9,2.85959]
[1721644626543,0.07001801,3497.0,3496.9,2.85959]
[1721644627052,2.85919,3497.5,3496.9,2.85959]
[1721644627255,0.07001801,3497.0,3496.9,2.85959]
[1721644627455,2.85919,3497.5,3496.9,2.85959]
[1721644627761,0.07003214,3497.0,3496.9,2.85959]
[1721644627967,2.85926,3497.4,3496.7,9.13598]
[1721644628132,0.07004627,3497.0,3496.7,6.27617]
[1721644628456,2.85926,3497.4,3496.7,6.27617]
[1721644628791,0.07002063,3496.9,3496.8,2.85975]
[1721644628931,1.45436192,3497.3,3496.8,2.85975]
[1721644628932,2.85926,3497.4,3496.8,2.85975]
[1721644629122,1.45436778,3497.3,3496.8,2.85975]
[1721644629316,1.52454999,3497.3,3496.8,2.85975]
[1721644629522,0.07018221,3497.3,3496.8,2.85975]
[1721644629851,0.07018221,3497.3,3496.9,2.85967]
[1721644631333,0.07018221,3497.3,3496.9,5.71928]
[1721644631650,2.85911,3497.6,3497.0,2.85956]
[1721644631855,6.13685,3497.8,3497.2,5.23692]
[1721644631856,1.45435584,3497.5,3497.2,5.23692]
[1721644632031,5.11885,3497.8,3497.2,5.23692]
[1721644632032,2.85902,3497.7,3497.2,5.23692]
[1721644632359,1.4542577,3497.6,3497.2,5.23692]
[1721644633980,1.4542577,3497.6,3497.4,2.85922]
[1721644634135,1.4542577,3497.5,3497.4,2.85922]
[1721644635573,1.4542577,3497.9,3497.4,2.85922]
[1721644635733,1.4542577,3497.9,3497.8,2.85893]
[1721644635937,1.45410182,3497.9,3497.8,2.85893]
[1721644636183,1.45410182,3497.9,3497.5,5.11142]
[1721644636184,1.45408502,3497.9,3497.5,5.11142]
[1721644636342,1.45408502,3497.8,3497.6,2.85904]
[1721644636742,2.85865,3498.2,3497.7,2.85902]
[1721644637066,2.85865,3498.2,3497.5,5.11141]
[1721644637067,1.45412478,3498.1,3497.5,5.11141]
[1721644638687,1.45412478,3498.1,3497.7,2.859]
[1721644638977,1.45412478,3498.0,3497.7,2.859]
[1721644639138,1.45412478,3497.9,3497.7,2.859]
[1721644639338,1.45412478,3497.8,3497.7,2.859]
[1721644639535,1.45412478,3498.3,3497.5,2.2523]
[1721644639768,5.28453,3498.0,3497.4,2.85922]
[1721644640043,1.45412478,3497.9,3497.4,2.8592]
[1721644640776,1.45412478,3497.9,3497.4,2.85919]
[1721644641314,1.45412478,3497.9,3497.5,2.85912]
[1721644643839,1.45412478,3497.9,3497.6,2.85909]
[1721644644180,1.45412478,3497.8,3497.6,2.85909]
[1721644644376,1.45412478,3497.7,3497.6,2.85909]
[1721644644845,1.45412478,3497.7,3497.5,3.87718]
[1721644645047,1.45412478,3497.6,3497.5,3.87718]
[1721644645239,1.45412478,3497.9,3497.5,3.87718]
[1721644645571,2.85877,3498.0,3497.5,3.87718]
[1721644645572,1.45412478,3497.8,3497.5,3.87718]
[1721644645786,1.45412478,3497.7,3497.6,2.8591]
[1721644646084,2.8587,3498.1,3497.6,2.8591]
[1721644646242,1.45412478,3498.0,3497.6,2.8591]
[1721644646978,1.45412478,3498.0,3497.5,3.87717]
[1721644648040,1.45412478,3498.0,3497.6,2.85909]
[1721644651374,0.06789625,3497.9,3497.6,2.85909]
[1721644652273,2.8587,3498.1,3497.6,2.85909]
[1721644652473,0.06789824,3497.8,3497.6,2.85909]
[1721644652792,2.8587,3498.1,3497.6,2.85909]
[1721644652989,0.06785786,3497.7,3497.5,3.87716]
[1721644653294,2.8587,3498.1,3497.4,2.85921]
[1721644653295,2.85886,3497.9,3497.4,2.85921]
[1721644653502,0.06784572,3497.6,3497.3,1.018]
[1721644653707,2.3485,3497.9,3497.3,1.018]
[1721644653887,0.06781859,3497.5,3497.4,2.85925]
[1721644654086,2.3485,3497.9,3497.4,2.85925]
[1721644654303,0.06781859,3497.5,3497.4,2.85925]
[1721644654502,2.3485,3497.9,3497.4,2.85925]
[1721644654810,0.06781859,3497.5,3497.4,2.85925]
[1721644655022,5.20741,3497.9,3497.4,2.85925]
[1721644655183,0.06767732,3497.5,3497.4,2.85925]
[1721644655373,5.20741,3497.9,3497.4,2.85925]
[1721644655907,0.06779849,3497.8,3497.4,2.85925]
[1721644656686,0.06779849,3497.8,3497.6,2.85905]
[1721644657011,2.85873,3498.1,3497.6,2.85905]
[1721644657220,0.06778636,3497.7,3497.6,2.85905]
[1721644657388,2.85873,3498.1,3497.6,2.85905]
[1721644657576,0.06780049,3497.7,3497.6,2.85905]
[1721644657776,2.85873,3498.1,3497.6,2.85905]
[1721644657977,0.06781461,3497.7,3497.6,2.85905]
[1721644658178,2.85873,3498.1,3497.6,2.85905]
[1721644658820,2.92674401,3498.0,3497.5,3.87718]
[1721644662180,2.92674401,3498.0,3497.5,6.7363]
[1721644662386,2.92674401,3498.0,3497.5,3.87712]
[1721644662701,0.06796401,3498.0,3497.6,2.85907]
[1721644662900,2.85869,3498.1,3497.6,2.85907]
[1721644663088,0.06786042,3497.9,3497.6,2.85907]
[1721644663288,2.85869,3498.1,3497.6,2.85907]
[1721644663488,0.06783416,3497.8,3497.6,2.85907]
[1721644663690,2.85869,3498.1,3497.6,2.85907]
[1721644663900,0.0678079,3497.7,3497.6,2.85907]
[1721644664101,2.2711,3498.2,3497.6,3.532707]
[1721644664332,2.85848,3498.4,3497.7,2.85897]
[1721644664333,2.85854,3498.3,3497.7,2.85897]
[1721644664907,2.85854,3498.3,3497.8,2.85893]
[1721644665109,2.85854,3498.3,3497.6,8.863427]
[1721644665296,2.85854,3498.3,3497.7,2.85899]
[1721644665834,2.85854,3498.3,3497.8,2.85892]
[1721644666234,5.20805,3498.4,3497.8,2.85888]
[1721644666454,0.06804729,3498.2,3497.8,2.85888]
[1721644666736,0.0680924,3498.1,3497.8,3.779644]
[1721644666939,2.85853,3498.3,3497.8,3.779644]
[1721644667094,0.06806962,3498.0,3497.8,3.779644]
[1721644667297,2.85853,3498.3,3497.8,3.779644]
[1721644667498,0.06805749,3497.9,3497.8,2.85888]
[1721644667695,2.85853,3498.3,3497.8,2.85888]
[1721644667938,0.06815678,3497.9,3497.8,2.85888]
[1721644668141,2.85853,3498.3,3497.8,2.85888]
[1721644668448,0.06801554,3497.9,3497.7,1.018]
[1721644668738,1.52201069,3497.8,3497.6,8.18979]
[1721644668949,1.45403553,3497.7,3497.6,6.251509]
[1721644669349,1.4540753,3498.2,3497.7,2.85895]
[1721644669565,2.3235,3498.0,3497.1,0.59427727]
[1721644669716,2.3235,3498.0,3497.3,2.85934]
[1721644669717,2.85898,3497.8,3497.3,2.85934]
[1721644670034,1.45407434,3497.7,3497.3,2.85934]
[1721644670455,1.45407434,3497.7,3497.1,3.87743]
[1721644670753,1.45407434,3497.7,3497.2,0.673698]
[1721644671176,1.45407434,3497.7,3497.2,3.533078]
[1721644673031,4.31309434,3497.7,3497.2,3.533078]
[1721644673274,4.31318434,3497.6,3497.2,0.673698]
[1721644673590,1.45407434,3497.5,3497.2,0.673698]
[1721644675335,1.45407434,3497.5,3497.1,2.8595]
[1721644676771,1.45407434,3497.5,3497.1,5.7189]
[1721644676983,1.45407434,3497.5,3497.2,2.85942]
[1721644678573,1.45407434,3497.5,3497.3,2.85934]
[1721644678878,1.45407434,3497.4,3497.3,2.85934]
[1721644679088,1.45407434,3497.7,3497.3,3.533018]
[1721644679236,1.45407434,3497.6,3497.3,3.533018]
[1721644679437,1.45407434,3497.5,3497.3,3.533018]
[1721644679679,1.45407434,3497.4,3497.3,3.533018]
[1721644680035,1.45407434,3497.7,3497.3,3.533018]
[1721644680356,1.45407434,3497.6,3497.3,3.533018]
[1721644680551,1.45407434,3497.5,3497.3,4.550958]
[1721644680892,2.85881,3498.0,3497.4,2.85918]
[1721644681049,1.45418781,3497.9,3497.3,4.550958]
[1721644681385,1.45418781,3497.8,3497.4,2.85926]
[1721644681683,1.45418781,3497.7,3497.5,2.85914]
[1721644681864,1.52218106,3497.7,3497.5,2.85914]
[1721644682069,1.45418781,3497.6,3497.5,2.85914]
[1721644682273,1.52214068,3497.6,3497.5,2.85914]
[1721644683573,1.52214068,3497.6,3497.5,9.01402]
[1721644683734,1.52214068,3497.6,3497.5,10.13893871]
[1721644683941,1.45418781,3497.6,3497.5,11.13292052]
[1721644684183,1.45403735,3498.2,3497.7,2.85896]
[1721644684334,1.45403458,3498.1,3497.8,2.85892]
[1721644684538,1.45403458,3498.0,3497.8,2.85892]
[1721644684795,1.52215645,3498.0,3497.8,2.85892]
[1721644684939,1.45403458,3497.9,3497.8,2.85892]
[1721644685306,1.52212481,3497.9,3497.8,2.85892]
[1721644685798,1.52212481,3497.9,3497.8,3.87278187]
[1721644699185,1.52212481,3497.9,3497.8,2.85892]
[1721644702429,0.06809023,3497.9,3497.8,11.88232309]
[1721644702603,0.06809023,3497.9,3497.8,13.373046]
[1721644702772,2.3653,3498.9,3498.4,2.85837]
[1721644702970,1.52180229,3498.8,3498.4,2.85837]
[1721644703164,1.45370286,3498.7,3498.5,2.85836]
[1721644703500,1.51955706,3498.7,3498.5,2.85836]
[1721644703675,1.45370286,3498.6,3498.5,2.85836]
[1721644703875,1.51968836,3498.6,3498.5,2.85836]
[1721644704077,0.0659855,3498.6,3498.5,2.85836]
[1721644704383,1.45370053,3498.6,3498.5,2.85836]
[1721644704613,0.06599962,3498.6,3498.5,2.85836]
[1721644704973,2.3653,3498.9,3498.5,2.85836]
[1721644705202,0.06557205,3498.6,3498.5,2.85836]
[1721644705376,2.3653,3498.9,3498.5,2.85836]
[1721644705577,0.06557205,3498.6,3498.5,2.85836]
[1721644705907,2.3653,3498.9,3498.5,2.85836]
[1721644706107,0.06560345,3498.6,3498.5,2.85836]
[1721644706272,2.3653,3498.9,3498.5,2.85836]
[1721644706722,0.06571559,3498.8,3498.6,2.85827]
[1721644706886,0.06571559,3498.8,3498.7,2.8582]
[1721644707275,0.06568114,3498.8,3498.7,2.8582]
[1721644707720,2.4402,3499.2,3498.7,2.8582]
[1721644707928,1.45365465,3499.1,3498.7,2.8582]
[1721644708303,1.51948439,3499.1,3498.7,2.8582]
[1721644708513,1.45365335,3499.0,3498.7,2.8582]
[1721644708718,0.06573575,3498.9,3498.7,2.8582]
[1721644709094,2.4402,3499.2,3498.7,2.8582]
[1721644709433,1.51947415,3499.1,3498.8,2.85812]
[1721644709602,0.06581648,3499.1,3498.8,2.85812]
[1721644709803,0.06581648,3499.1,3498.8,2.85811]
[1721644710404,0.06581648,3499.1,3498.9,2.85798]
[1721644710934,2.4858,3499.4,3498.9,2.85798]
[1721644711091,0.06542058,3499.0,3498.9,2.85798]
[1721644711294,2.4858,3499.4,3499.0,2.85792]
[1721644711491,0.06558404,3499.3,3499.0,2.85792]
[1721644712544,0.06558404,3499.3,3498.8,2.85805]
[1721644712751,0.06558404,3499.3,3498.6,5.25645]